bitfinex-derivatives/quotes_BNBF0:USTF0_20250116
["timestamp","ask_amount","ask_price","bid_price","bid_amount"]
[1737044393116,1.0445634,712.33,711.29,1.23417765]
[1737044393317,1.0445634,712.33,711.3,1.23417765]
[1737044393613,1.0445634,712.33,711.31,1.23417765]
[1737044393814,1.0445634,712.33,711.32,1.23417765]
[1737044394016,1.0445634,712.33,711.33,1.23417765]
[1737044394214,1.0445634,712.33,711.34,1.23417765]
[1737044394415,1.0445634,712.4,711.35,1.23417765]
[1737044394614,1.0445634,712.4,711.36,1.23417765]
[1737044394817,1.0445634,712.4,711.37,1.23417765]
[1737044395115,1.0445634,712.4,711.38,1.23417765]
[1737044395309,1.0445634,712.4,711.39,1.23417765]
[1737044395514,1.0445634,712.5,711.4,1.23417765]
[1737044395716,1.0445634,712.5,711.41,1.23417765]
[1737044395918,1.0445634,712.5,711.42,1.23417765]
[1737044396218,1.0445634,712.5,711.43,1.23417765]
[1737044396416,1.0445634,712.5,711.44,1.23417765]
[1737044396616,1.0445634,712.5,711.45,1.49233469]
[1737044396815,1.0445634,712.5,711.46,1.49233469]
[1737044397016,1.0445634,712.5,710.39,1.23767941]
[1737044397017,1.0445634,712.66,711.47,1.23417765]
[1737044397212,1.0445634,712.66,711.48,1.23417765]
[1737044397413,1.0445634,712.66,711.49,1.23417765]
[1737044397610,1.0445634,712.66,711.5,1.23417765]
[1737044397812,1.0445634,712.66,711.51,1.23417765]
[1737044398013,1.0445634,712.66,711.52,1.23417765]
[1737044398213,1.0445634,712.56,711.53,1.23417765]
[1737044398416,1.0445634,712.56,711.54,1.23417765]
[1737044398611,1.0445634,712.56,711.55,1.23417765]
[1737044398810,1.0445634,712.56,711.29,1.0313995]
[1737044398811,1.0445634,712.56,711.56,1.23417765]
[1737044399011,1.0445634,712.56,711.57,1.23417765]
[1737044399217,1.0445634,712.56,711.58,1.23417765]
[1737044399517,1.0445634,712.47,711.59,1.23417765]
[1737044399717,1.0445634,712.47,711.6,1.23417765]
[1737044399914,1.0445634,712.47,711.61,1.23417765]
[1737044400112,1.0445634,712.47,711.62,1.23417765]
[1737044400311,1.0445634,712.47,711.63,1.23417765]
[1737044400617,1.0445634,712.47,711.64,1.23417765]
[1737044400812,1.0445634,712.47,711.25,1.0313995]
[1737044400813,1.0445634,712.47,711.65,1.23417765]
[1737044401016,1.0445634,712.52,711.66,1.23417765]
[1737044401219,1.0445634,712.52,711.67,1.23417765]
[1737044401419,1.0445634,712.52,711.68,1.23417765]
[1737044401611,1.0445634,712.52,711.69,1.23417765]
[1737044401818,1.0445634,712.52,711.7,1.23417765]
[1737044402114,1.0445634,712.53,711.71,1.23417765]
[1737044402313,1.0445634,712.53,711.72,1.23417765]
[1737044402517,1.0445634,712.53,711.73,1.23417765]
[1737044402716,1.0445634,712.53,711.74,1.23417765]
[1737044402918,1.0445634,712.53,711.75,1.23417765]
[1737044403113,1.0445634,712.87,711.76,1.23417765]
[1737044403114,1.0445634,712.54,711.76,1.23417765]
[1737044403321,1.0445634,712.54,711.19,1.0313995]
[1737044403322,1.0445634,712.54,711.77,1.23417765]
[1737044403619,1.0445634,712.54,711.19,1.0313995]
[1737044403620,1.0445634,712.54,711.78,1.23417765]
[1737044403817,1.0445634,712.54,711.79,1.23417765]
[1737044404018,1.0445634,712.54,711.8,1.23417765]
[1737044404319,1.0445634,712.58,711.81,1.23417765]
[1737044404520,1.0445634,712.58,711.82,1.23417765]
[1737044404820,1.0445634,712.58,711.83,1.23417765]
[1737044405120,1.0445634,712.58,711.84,1.23417765]
[1737044405313,1.0445634,712.55,711.85,1.23417765]
[1737044405513,1.0445634,712.55,711.86,1.23417765]
[1737044405715,1.0445634,712.55,711.87,1.23417765]
[1737044406020,1.0445634,712.55,711.22,1.0313995]
[1737044406021,1.0445634,712.55,711.88,1.23417765]
[1737044406321,1.0445634,712.55,710.74,1.23767941]
[1737044406322,1.0445634,712.56,711.89,1.23841426]
[1737044406619,1.0445634,712.56,711.9,1.23841426]
[1737044406820,1.0445634,712.56,711.91,1.23841426]
[1737044407022,1.0445634,712.56,711.92,1.23841426]
[1737044407221,1.0445634,712.56,711.93,0.47466485]
[1737044407422,1.0445634,712.56,711.21,1.0313995]
[1737044407423,1.0445634,712.56,711.94,0.47466485]
[1737044407624,1.0445634,712.55,711.95,0.47466485]
[1737044407819,1.0445634,712.55,711.96,0.47466485]
[1737044408019,1.0445634,712.55,711.97,0.47466485]
[1737044408217,1.0445634,712.55,711.98,0.47466485]
[1737044408421,1.0445634,712.58,711.99,0.47622729]
[1737044408722,1.0445634,712.58,712.0,0.47622729]
[1737044409025,1.0445634,712.58,712.01,0.47622729]
[1737044409322,1.0445634,712.58,712.02,0.47622729]
[1737044409523,1.0445634,712.58,710.77,1.23767941]
[1737044409524,1.0445634,712.62,712.03,0.47622729]
[1737044409723,1.0445634,712.62,712.04,0.47622729]
[1737044409925,1.0445634,712.62,712.05,0.47622729]
[1737044410125,1.0445634,712.62,712.06,0.47622729]
[1737044410323,1.0445634,712.62,711.26,1.0313995]
[1737044410521,1.0445634,712.62,711.27,1.23759147]
[1737044410725,1.0445634,712.62,711.26,1.0313995]
[1737044410726,1.0445634,712.62,711.28,1.23759147]
[1737044410927,1.0445634,712.76,711.29,1.49573729]
[1737044411127,1.0445634,712.76,711.3,1.49573729]
[1737044411425,1.0445634,712.76,711.31,1.49573729]
[1737044411626,1.0445634,712.76,711.32,1.23759147]
[1737044411826,1.0445634,712.76,711.33,1.77690118]
[1737044412027,1.0445634,712.76,711.34,1.77689723]
[1737044412327,1.0445634,712.76,711.35,1.49573773]
[1737044412526,1.0445634,712.76,711.36,1.49573773]
[1737044412726,1.0445634,712.76,711.37,1.49573773]
[1737044412926,1.0445634,712.76,711.38,1.23759147]
[1737044413125,1.0445634,712.73,711.39,1.23759147]
[1737044413320,1.0445634,712.73,711.4,1.23759147]
[1737044413520,1.0445634,712.73,711.41,1.23759147]
[1737044413726,1.0445634,712.73,711.42,1.23759147]
[1737044413921,1.0445634,712.73,711.43,1.23759147]
[1737044414227,1.0445634,712.73,711.44,1.49577306]
[1737044414422,1.0445634,712.73,711.34,0.2811595]
[1737044414423,1.0445634,712.68,711.45,1.23759147]
[1737044414722,1.0445634,712.68,711.46,1.23759147]
[1737044414926,1.0445634,712.68,711.47,1.23759147]
[1737044415125,1.0445634,712.68,711.48,1.23759147]
[1737044415323,1.0445634,712.68,711.34,0.2811595]
[1737044415324,1.0445634,712.68,711.49,1.23759147]
[1737044415626,1.0445634,712.53,711.5,1.23759147]
[1737044415820,1.0445634,712.53,711.51,1.23759147]
[1737044416024,1.0445634,712.53,711.52,1.23759147]
[1737044416227,1.0445634,712.53,711.53,1.23759147]
[1737044416528,1.0445634,712.53,711.54,1.23759147]
[1737044416728,1.0445634,712.5,711.55,1.23759147]
[1737044416928,1.0445634,712.5,711.56,1.23759147]
[1737044417222,1.0445634,712.5,711.57,1.23759147]
[1737044417422,1.0445634,712.5,711.58,1.23759147]
[1737044417629,1.0445634,712.49,711.59,1.23759147]
[1737044417829,1.0445634,712.49,711.6,1.23981922]
[1737044418033,1.0445634,712.49,711.61,1.23981922]
[1737044418222,1.0445634,712.49,711.34,0.2811595]
[1737044418223,1.0445634,712.49,711.62,1.23981922]
[1737044418426,1.0445634,712.49,711.63,1.23981922]
[1737044418625,1.0445634,712.49,711.64,1.23981922]
[1737044418827,1.0445634,712.32,711.65,0.47683447]
[1737044419122,1.0445634,712.32,711.34,0.2811595]
[1737044419123,1.0445634,712.32,711.66,0.47683447]
[1737044419324,1.0445634,712.32,711.67,0.47683447]
[1737044419526,1.0445634,712.32,711.68,0.47683447]
[1737044419727,1.0445634,712.32,711.34,0.2811595]
[1737044419932,1.0445634,712.36,711.35,1.24020491]
[1737044420229,1.0445634,712.36,711.36,1.24020491]
[1737044420428,1.0445634,712.36,711.37,1.24020491]
[1737044420624,1.0445634,712.42,711.38,1.24020491]
[1737044420822,1.0445634,712.42,711.39,1.24020491]
[1737044421031,0.28073721,712.41,711.4,1.24020491]
[1737044421228,0.28073721,712.41,711.41,0.4769828]
[1737044421533,0.28073721,712.41,711.42,0.4769828]
[1737044421731,0.28073721,712.41,710.09,1.0313995]
[1737044421732,1.0445634,712.31,710.54,1.0313995]
[1737044421921,1.0445634,712.31,710.55,1.49915566]
[1737044422228,1.0445634,712.31,710.54,1.0313995]
[1737044422229,1.0445634,712.31,710.56,2.09259072]
[1737044422425,1.0445634,712.31,710.57,1.49915566]
[1737044422629,1.0445634,712.31,710.58,1.49915566]
[1737044422825,1.0445634,712.31,710.59,1.49915566]
[1737044423030,1.0445634,712.03,710.6,2.53057117]
[1737044423229,1.0445634,712.03,710.61,1.49917167]
[1737044423429,1.0445634,712.03,710.62,1.49917167]
[1737044423631,1.0445634,712.03,710.63,1.49917167]
[1737044423831,1.0445634,712.03,710.41,1.0313995]
[1737044423832,1.0445634,712.03,710.64,1.49917167]
[1737044424032,1.0445634,712.17,710.65,1.49917167]
[1737044424233,1.0445634,712.17,710.66,1.49917167]
[1737044424432,1.0445634,712.17,710.67,1.78059624]
[1737044424632,1.0445634,712.17,710.68,1.49917167]
[1737044424833,1.0445634,712.22,710.69,1.49917167]
[1737044425025,1.0445634,712.22,710.7,1.49917167]
[1737044425229,1.0445634,712.22,710.71,1.49917167]
[1737044425428,1.0445634,712.22,710.72,1.49917167]
[1737044425630,1.0445634,712.22,710.73,1.49917167]
[1737044425829,1.0445634,712.22,710.74,1.24076742]
[1737044426027,1.0445634,712.22,710.75,1.49918428]
[1737044426230,1.0445634,712.22,710.76,1.49918428]
[1737044426428,1.0445634,712.22,710.77,1.49918428]
[1737044426633,1.0445634,712.22,710.78,1.24076742]
[1737044426830,1.0445634,712.22,710.79,1.49918143]
[1737044427135,0.28073721,712.41,710.8,1.49918143]
[1737044427136,1.0445634,712.31,710.8,1.49918143]
[1737044427330,1.0445634,712.31,710.81,1.49918143]
[1737044427632,1.0445634,712.31,710.82,1.49918143]
[1737044427827,1.0445634,712.31,710.83,1.24076742]
[1737044428032,1.0445634,712.31,710.84,1.24076742]
[1737044428235,1.0445634,712.33,710.85,1.24076742]
[1737044428426,1.0445634,712.33,710.86,1.24076742]
[1737044428734,1.0445634,712.33,710.87,1.24076742]
[1737044428936,1.0445634,712.33,710.88,1.24076742]
[1737044429135,1.0445634,712.33,710.67,0.28142457]
[1737044429136,1.0445634,712.33,710.89,1.24076742]
[1737044429333,0.28073721,712.41,710.9,1.24076742]
[1737044429531,0.28073721,712.41,710.91,1.24076742]
[1737044429732,1.46737412,712.4,710.92,1.24076742]
[1737044429928,1.46737412,712.4,710.93,1.24076742]
[1737044430134,1.46737412,712.4,710.94,1.24076742]
[1737044430335,1.46737412,712.4,710.95,1.24076742]
[1737044430631,1.46737412,712.4,710.96,1.24076742]
[1737044430834,1.46737412,712.4,710.97,1.24076742]
[1737044431034,1.46737412,712.4,710.98,1.24076742]
[1737044431234,1.46737412,712.4,710.99,1.24076742]
[1737044431435,1.46737412,712.4,711.0,1.24076742]
[1737044431635,1.46737412,712.4,711.01,1.24076742]
[1737044431936,1.46737412,712.4,711.02,1.24076742]
[1737044432138,1.46737412,712.4,711.03,1.24076742]
[1737044432332,1.46737412,712.4,711.04,1.24076742]
[1737044432537,1.46737412,712.4,711.05,1.24076742]
[1737044432837,1.46737412,712.4,711.06,1.24076742]
[1737044433138,1.46737412,712.4,711.07,1.24076742]
[1737044433338,1.46737412,712.4,711.08,1.24076742]
[1737044433537,1.46737412,712.4,711.09,1.24076742]
[1737044433733,1.46737412,712.4,711.1,1.24076742]
[1737044433939,1.46737412,712.4,711.11,1.24076742]
[1737044434236,1.46737412,712.4,711.12,1.24076742]
[1737044434438,1.46737412,712.4,711.13,1.24076742]
[1737044434636,1.46737412,712.4,711.14,1.24076742]
[1737044434834,1.46737412,712.4,711.15,1.23650465]
[1737044435034,1.46737412,712.4,711.16,1.23650465]
[1737044435232,1.46737412,712.4,711.17,0.47719915]
[1737044435436,1.46737412,712.4,711.18,0.47719915]
[1737044435637,1.46737412,712.4,711.19,0.47719915]
[1737044435838,1.46737412,712.4,711.2,0.47719915]
[1737044436036,1.46737412,712.4,711.21,0.47719915]
[1737044436236,1.46737412,712.4,711.22,0.47719915]
[1737044436437,1.46737412,712.4,711.23,0.47719915]
[1737044436638,0.28074903,712.38,711.24,0.47719915]
[1737044436834,0.28074903,712.38,710.67,0.28142457]
[1737044437140,0.28074903,712.38,710.68,1.23328821]
[1737044437343,0.28074903,712.38,710.69,1.23328821]
[1737044437639,0.28074903,712.38,710.7,1.23328821]
[1737044437839,0.28074903,712.38,710.71,1.23328821]
[1737044438041,0.28074903,712.38,710.72,1.23328821]
[1737044438241,0.28074903,712.38,710.73,1.23321046]
[1737044438441,0.28074903,712.38,710.74,1.23321046]
[1737044438640,0.28074903,712.38,710.75,1.23321046]
[1737044438838,0.28074903,712.38,710.76,1.23321046]
[1737044439039,0.28074903,712.38,710.77,1.23321046]
[1737044439345,0.28074903,712.38,710.78,1.23321046]
[1737044439550,0.28074903,712.38,710.79,1.23321046]
[1737044439751,0.28074903,712.38,710.8,1.23321046]
[1737044440051,0.28074903,712.38,710.81,1.23321046]
[1737044440251,0.28074903,712.38,710.82,1.23321046]
[1737044440449,0.28074903,712.38,710.83,1.23321046]
[1737044440651,0.28074903,712.38,710.84,1.23321046]
[1737044440851,0.28074903,712.38,710.85,1.23321046]
[1737044441052,0.28074903,712.38,710.67,0.28142457]
[1737044441053,0.28074903,712.38,710.86,1.23321046]
[1737044441252,0.28074903,712.38,710.87,1.23321046]
[1737044441446,0.28074903,712.38,710.88,1.23321046]
[1737044441644,0.28074903,712.38,710.89,1.23321046]
[1737044441950,0.28074903,712.38,710.9,1.23321046]
[1737044442153,0.28074903,712.38,710.91,1.23321046]
[1737044442451,0.28074903,712.38,710.92,1.23321046]
[1737044442645,0.28074903,712.38,710.93,1.23321046]
[1737044442850,0.28074903,712.38,710.94,1.23321046]
[1737044443051,0.28074903,712.38,710.95,1.23321046]
[1737044443250,0.28074903,712.38,710.96,1.23321046]
[1737044443454,0.28074903,712.38,710.97,1.23321046]
[1737044443753,0.28074903,712.38,710.98,1.23321046]
[1737044443948,0.28074903,712.38,710.99,1.23157017]
[1737044444254,0.28074903,712.38,711.0,1.23157017]
[1737044444454,0.28074903,712.38,711.01,1.23157017]
[1737044444653,0.28074903,712.38,711.02,1.23157017]
[1737044444854,0.28074903,712.38,711.03,1.23157017]
[1737044445152,0.28074903,712.38,710.67,0.28142457]
[1737044445153,0.28074903,712.38,711.04,1.23157017]
[1737044445453,0.28074903,712.38,711.05,1.23157017]
[1737044445654,0.28074903,712.38,711.06,1.23160359]
[1737044445955,0.28074903,712.38,711.07,1.23160359]
[1737044446155,0.28074903,712.38,711.08,1.23160359]
[1737044446356,0.28074903,712.38,711.09,1.23160359]
[1737044446551,0.28074903,712.38,711.1,1.23160359]
[1737044446751,0.28074903,712.38,710.67,0.28142457]
[1737044446752,0.28074903,712.38,711.11,1.23160359]
[1737044446947,0.28074903,712.38,711.12,1.23160359]
[1737044447156,0.28074903,712.38,711.13,1.23160359]
[1737044447355,0.28074903,712.38,711.14,1.23160359]
[1737044447557,0.28074903,712.38,711.15,1.23160359]
[1737044447755,0.28074903,712.38,711.16,1.23160359]
[1737044448055,0.28074903,712.38,711.17,1.23160359]
[1737044448351,1.0445634,712.37,711.18,1.23160359]
[1737044448553,1.0445634,712.37,710.67,0.28142457]
[1737044448554,1.0445634,712.37,711.19,0.47367474]
[1737044448754,0.28076086,712.35,711.2,0.47367474]
[1737044448954,0.28076086,712.35,710.67,0.28142457]
[1737044449157,0.28076086,712.35,710.68,1.23115578]
[1737044449460,1.0445634,712.21,710.69,1.51257243]
[1737044449661,1.0445634,712.21,710.7,1.23115578]
[1737044449852,1.0445634,712.21,710.71,1.23115578]
[1737044450056,1.0445634,712.21,710.72,1.23115578]
[1737044450359,1.0445634,712.21,710.73,1.23115578]
[1737044450558,1.0445634,712.21,710.74,1.23115578]
[1737044450758,1.0445634,711.9,710.75,1.23115578]
[1737044451060,1.0445634,711.9,710.76,1.23115578]
[1737044451359,1.0445634,711.9,710.77,1.23115578]
[1737044451653,1.0445634,711.9,710.71,0.28140873]
[1737044451654,1.0445634,711.95,710.78,1.23115578]
[1737044451854,1.0445634,711.95,710.79,1.23115578]
[1737044452057,1.0445634,711.95,710.8,1.23115578]
[1737044452258,1.0445634,711.95,710.81,1.23115578]
[1737044452456,1.0445634,711.95,710.82,1.23115578]
[1737044452657,1.0445634,711.95,710.71,0.28140873]
[1737044452658,1.0445634,711.95,710.83,1.23115578]
[1737044452859,1.0445634,711.95,710.84,1.23115578]
[1737044453060,1.0445634,711.93,710.85,1.23115578]
[1737044453256,1.0445634,711.93,710.86,1.23115578]
[1737044453455,1.0445634,711.93,710.87,1.23066539]
[1737044453760,1.0445634,711.93,710.88,1.23066539]
[1737044453953,1.0445634,711.93,710.89,0.47350251]
[1737044454153,1.0445634,711.93,710.9,0.47350251]
[1737044454355,0.72118424,712.34,710.91,0.47350251]
[1737044454356,1.0445634,711.91,710.91,0.47350251]
[1737044454558,1.0445634,711.91,710.92,0.47350251]
[1737044454753,1.0445634,711.91,710.93,0.47350251]
[1737044454958,1.0445634,711.91,710.94,0.47350251]
[1737044455160,1.0445634,711.91,710.95,0.47350251]
[1737044455461,1.0445634,712.2,710.71,0.28140873]
[1737044455462,1.0445634,711.89,710.71,0.28140873]
[1737044455662,1.0445634,711.89,710.72,1.22973439]
[1737044455960,1.0445634,711.89,710.73,1.22973439]
[1737044456162,1.0445634,711.89,710.74,1.22973439]
[1737044456362,1.0445634,711.79,710.75,1.22973439]
[1737044456558,1.0445634,711.79,710.76,1.22973439]
[1737044456755,1.0445634,711.79,710.77,1.22973439]
[1737044457060,1.0445634,711.79,710.78,1.22973439]
[1737044457258,1.0445634,711.8,710.79,1.22973439]
[1737044457462,1.0445634,711.8,710.8,1.22973439]
[1737044457662,1.0445634,711.8,710.81,1.22973439]
[1737044457857,1.0445634,711.8,710.82,1.22973439]
[1737044458162,1.0445634,711.8,710.83,1.22973439]
[1737044458358,1.0445634,711.8,710.84,1.22973439]
[1737044458563,1.0445634,711.72,710.85,1.22973439]
[1737044458862,1.0445634,711.72,710.86,1.22948605]
[1737044459063,1.0445634,711.72,710.87,1.22948605]
[1737044459262,1.0445634,711.72,710.88,0.47286033]
[1737044459462,1.0445634,711.72,710.89,0.47286033]
[1737044459662,1.0445634,711.72,710.9,0.47286033]
[1737044459962,1.0445634,711.75,710.91,0.47286033]
[1737044460157,1.0445634,711.75,710.92,0.47286033]
[1737044460357,1.0445634,711.75,710.93,0.47286033]
[1737044460557,1.0445634,711.75,710.71,0.28140873]
[1737044460862,1.0445634,711.75,710.72,1.22960357]
[1737044461062,1.0445634,711.75,710.25,1.0313995]
[1737044461063,1.0445634,711.75,710.73,1.22960357]
[1737044461265,1.0445634,711.74,710.74,1.22960357]
[1737044461465,1.0445634,711.74,710.75,0.47290553]
[1737044461657,1.0445634,711.74,710.76,0.47290553]
[1737044461858,1.0445634,711.74,710.77,0.47290553]
[1737044462161,1.0445634,711.74,710.22,1.0313995]
[1737044462162,1.0445634,711.74,710.78,0.47290553]
[1737044462364,2.41341115,712.35,710.79,0.47290553]
[1737044462365,1.0445634,711.65,710.79,0.47290553]
[1737044462566,1.0445634,711.65,710.8,0.47290553]
[1737044462864,1.0445634,711.65,710.03,1.0313995]
[1737044463159,1.0445634,711.65,710.04,1.4886193]
[1737044463364,1.0445634,711.65,710.05,1.4886193]
[1737044463560,1.0445634,711.65,710.03,1.0313995]
[1737044463561,1.0445634,711.71,710.06,1.4886193]
[1737044463764,1.0445634,711.71,709.91,1.0313995]
[1737044463765,1.0445634,711.71,710.07,1.48865194]
[1737044463964,1.0445634,711.71,710.08,1.48865194]
[1737044464163,1.0445634,711.71,710.09,1.48865194]
[1737044464359,1.0445634,711.71,710.1,1.48865194]
[1737044464560,1.0445634,711.71,710.11,1.48865194]
[1737044464763,1.0445634,711.71,710.12,1.48865194]
[1737044464964,1.0445634,711.71,709.32,1.23767941]
[1737044464965,1.0445634,711.51,710.13,1.48865194]
[1737044465167,1.0445634,711.51,710.14,1.48865194]
[1737044465466,1.0445634,711.51,710.15,1.48864177]
[1737044465666,1.0445634,711.51,710.16,1.48864177]
[1737044465864,1.0445634,711.51,710.17,1.48865583]
[1737044466060,1.0445634,711.67,710.18,1.48865583]
[1737044466263,1.0445634,711.67,710.19,1.48865583]
[1737044466457,1.0445634,711.67,710.2,1.23001785]
[1737044466659,1.0445634,711.67,710.21,1.23001785]
[1737044466860,1.0445634,711.67,710.22,1.23001785]
[1737044467062,1.0445634,711.67,710.23,1.23001785]
[1737044467361,1.0445634,711.67,710.24,1.23001785]
[1737044467567,1.0445634,711.69,710.25,1.23001785]
[1737044467767,1.0445634,711.69,710.26,1.22595798]
[1737044467962,1.0445634,711.69,710.27,0.75695299]
[1737044468170,1.0445634,711.69,710.28,0.75695299]
[1737044468467,1.0445634,711.69,710.29,0.75695299]
[1737044468666,1.0445634,711.64,710.3,0.75695299]
[1737044468866,1.0445634,711.64,710.31,0.75695299]
[1737044469067,1.0445634,711.64,710.32,0.75695299]
[1737044469268,1.0445634,711.64,710.33,0.75695299]
[1737044469468,1.0445634,711.64,710.34,0.75695299]
[1737044469665,2.13265029,712.39,709.42,1.0313995]
[1737044469666,1.0445634,711.63,710.35,0.75695299]
[1737044469865,1.0445634,711.63,710.36,0.75695299]
[1737044470062,1.0445634,711.63,710.37,0.75695299]
[1737044470270,1.0445634,711.63,709.41,1.0313995]
[1737044470271,1.0445634,711.63,710.38,0.75695299]
[1737044470469,1.0445634,711.63,710.39,0.75695299]
[1737044470769,1.0445634,711.63,710.4,0.75695299]
[1737044470966,1.0445634,711.63,709.41,1.0313995]
[1737044471162,1.0445634,711.57,709.51,0.28188468]
[1737044471361,1.0445634,711.57,709.52,1.6059056]
[1737044471570,1.0445634,711.57,709.53,3.01975883]
[1737044471869,1.0445634,711.57,709.54,3.01975883]
[1737044472069,1.0445634,711.57,709.55,3.01975883]
[1737044472271,1.0445634,711.76,709.51,0.28188468]
[1737044472272,1.0445634,711.62,709.56,3.0193002]
[1737044472467,1.0445634,711.62,709.57,3.0193002]
[1737044472664,1.0445634,711.62,709.58,1.60587471]
[1737044472969,1.0445634,711.62,709.59,3.01936355]
[1737044473170,1.0445634,711.7,709.6,3.01936355]
[1737044473371,1.46914479,711.61,709.61,3.01936355]
[1737044473671,1.0445634,711.7,709.62,3.01936355]
[1737044473863,1.0445634,711.7,709.63,3.01936355]
[1737044474068,1.0445634,711.7,709.64,3.01936355]
[1737044474270,1.84726425,712.61,709.65,3.01936355]
[1737044474271,1.46905693,711.69,709.65,3.01936355]
[1737044474570,1.46905693,711.69,709.66,3.01936355]
[1737044474762,1.46905693,711.69,709.67,2.26595064]
[1737044474963,1.46905693,711.69,709.68,3.01883917]
[1737044475164,1.46905693,711.69,709.58,1.0313995]
[1737044475165,1.46905693,711.69,709.69,3.01947528]
[1737044475367,1.46905693,711.69,709.7,1.60535033]
[1737044475566,1.46905693,711.69,709.62,1.0313995]
[1737044475567,1.46905693,711.69,709.71,3.01983007]
[1737044475870,1.46905693,711.69,709.72,1.60526298]
[1737044476065,1.46905693,711.69,709.73,1.34668852]
[1737044476266,1.46905693,711.69,709.74,1.60526298]
[1737044476474,1.46905693,711.69,709.75,1.60526298]
[1737044476664,1.46905693,711.69,709.76,0.85169502]
[1737044476867,1.46905693,711.69,709.77,1.01294129]
[1737044477071,1.46905693,711.69,709.78,1.60606185]
[1737044477271,1.46905693,711.69,709.79,1.60606185]
[1737044477473,1.46905693,711.69,709.8,1.60606185]
[1737044477670,1.46905693,711.69,709.66,1.0313995]
[1737044477671,1.46905693,711.69,709.81,1.60606185]
[1737044477872,1.46905693,711.69,709.82,1.60606185]
[1737044478168,1.46905693,711.69,709.83,1.60606185]
[1737044478373,1.46905693,711.69,709.84,1.60606185]
[1737044478573,1.46905693,711.69,709.85,1.60606185]
[1737044478770,1.46905693,711.69,709.86,1.60606185]
[1737044478967,1.46905693,711.69,709.87,1.60606185]
[1737044479169,1.46905693,711.69,709.88,1.60606185]
[1737044479369,1.46905693,711.69,709.89,1.60606185]
[1737044479571,1.46905693,711.69,709.9,1.60606185]
[1737044479872,1.46905693,711.69,709.91,2.0778869]
[1737044480069,1.46905693,711.69,709.92,2.0778869]
[1737044480268,1.46905693,711.69,709.93,2.0778869]
[1737044480568,1.46905693,711.69,709.94,1.22619188]
[1737044480772,1.46905693,711.69,709.95,2.07784033]
[1737044480975,1.46905693,711.69,709.77,1.0313995]
[1737044480976,1.46905693,711.69,709.96,1.48477106]
[1737044481172,1.46905693,711.69,709.97,1.48477106]
[1737044481368,1.46905693,711.69,709.98,1.48477106]
[1737044481571,1.46905693,711.69,709.99,1.48477106]
[1737044481772,1.46905693,711.69,710.0,1.48477106]
[1737044481970,1.46905693,711.69,710.01,1.48477106]
[1737044482173,1.46905693,711.69,710.02,1.48477106]
[1737044482369,1.46905693,711.69,710.03,1.48608267]
[1737044482569,1.46905693,711.69,710.04,1.48608267]
[1737044482774,1.46905693,711.69,710.05,1.48608267]
[1737044482976,1.46905693,711.69,710.06,1.48608267]
[1737044483174,1.0445634,711.78,710.07,1.48608267]
[1737044483375,1.0445634,711.78,710.08,1.48603274]
[1737044483575,1.0445634,711.78,710.09,1.48603274]
[1737044483878,1.85306962,712.83,709.51,0.28188468]
[1737044483879,1.0445634,711.99,710.1,1.48603274]
[1737044484181,1.0445634,711.99,710.11,1.4851607]
[1737044484478,1.0445634,711.99,710.12,1.4851607]
[1737044484674,1.0445634,711.99,710.13,1.4851607]
[1737044484880,0.72042032,712.34,709.61,1.0313995]
[1737044484881,1.0445634,711.95,710.14,1.4851607]
[1737044485073,1.0445634,711.95,710.15,1.4851607]
[1737044485380,1.0445634,711.95,710.16,1.4851607]
[1737044485579,1.0445634,711.95,710.17,1.4851607]
[1737044485780,1.0445634,711.95,710.18,1.4851607]
[1737044485978,1.0445634,711.95,710.19,1.4851607]
[1737044486180,1.0445634,711.95,710.2,1.81910348]
[1737044486379,1.0445634,711.95,710.21,2.07757755]
[1737044486579,1.0445634,711.95,710.22,2.07757755]
[1737044486777,1.0445634,711.95,710.23,0.85093216]
[1737044486978,1.0445634,711.95,710.24,0.85093216]
[1737044487280,1.0445634,711.95,709.7,1.0313995]
[1737044487281,1.0445634,711.95,710.25,1.88233166]
[1737044487473,1.0445634,711.95,710.26,0.85093216]
[1737044487674,1.0445634,711.95,710.27,0.75512955]
[1737044487880,1.0445634,711.95,710.28,0.85093216]
[1737044488081,1.0445634,711.95,710.29,1.48557357]
[1737044488283,1.0445634,711.98,710.3,1.48557357]
[1737044488483,1.0445634,711.98,710.31,1.48557357]
[1737044488782,1.0445634,711.98,710.32,1.48557357]
[1737044488983,1.0445634,711.98,710.33,1.48555985]
[1737044489179,1.0445634,712.06,710.34,1.48555985]
[1737044489384,1.0445634,712.06,710.35,1.48555985]
[1737044489681,1.0445634,712.06,710.36,1.48555985]
[1737044489882,1.0445634,712.06,710.37,1.48555985]
[1737044490083,1.0445634,712.06,709.92,1.0313995]
[1737044490084,1.0445634,712.08,710.38,1.48555985]
[1737044490383,1.0445634,712.08,710.39,1.48555985]
[1737044490579,1.0445634,712.08,710.4,1.48555985]
[1737044490776,1.0445634,712.08,710.41,1.48555985]
[1737044490982,1.0445634,712.06,710.42,1.48555985]
[1737044491287,1.0445634,712.06,710.43,1.48555985]
[1737044491483,1.0445634,712.06,710.44,1.48555985]
[1737044491683,1.0445634,712.06,710.45,1.48558545]
[1737044491884,1.0445634,712.06,710.46,1.48558545]
[1737044492088,1.0445634,712.02,710.47,1.48558545]
[1737044492283,1.0445634,712.02,710.48,1.48558545]